fUST/lending_fUST_20250822
["ID","MTS","AMOUNT","RATE_DAILY","PERIOD"]
[380695082,1755847845427,-156.0,0.00025736,7]
[380695083,1755847845437,-700.0,0.00025737,2]
[380695084,1755847845446,-600.0,0.0002574,2]
[380695085,1755847845455,-600.0,0.00025744,2]
[380695086,1755847845465,-7295.36952858,0.0002575,2]
[380695087,1755847845474,-480.0,0.00025753,10]
[380695088,1755847845484,-480.0,0.00025753,10]
[380695089,1755847845493,-480.0,0.00025753,10]
[380695090,1755847845503,-284.81,0.00025753,10]
[380695091,1755847845512,-480.0,0.00025753,10]
[380695092,1755847845522,-480.0,0.00025753,10]
[380695093,1755847845531,-480.0,0.00025753,10]
[380695094,1755847845541,-480.0,0.00025753,10]
[380695095,1755847845550,-480.0,0.00025753,10]
[380695096,1755847845561,-727.08,0.00025753,10]
[380695097,1755847845574,-482.42,0.00025753,10]
[380695098,1755847845584,-480.0,0.00025753,10]
[380695099,1755847845593,-354.20710622,0.00025753,10]
[380695100,1755847845602,-480.0,0.00025753,10]
[380695101,1755847845611,-480.0,0.00025753,10]
[380695102,1755847845621,-480.0,0.00025753,10]
[380695103,1755847845630,-2164.51,0.00025753,10]
[380695104,1755847845640,-480.0,0.00025753,10]
[380695105,1755847845649,-890.84,0.00025753,10]
[380695106,1755847845659,-480.0,0.00025753,3]
[380695107,1755847845669,-480.0,0.00025753,10]
[380695108,1755847845677,-480.0,0.00025753,10]
[380695109,1755847845686,-480.0,0.00025753,10]
[380695110,1755847845695,-480.0,0.00025753,10]
[380695111,1755847845705,-480.0,0.00025753,10]
[380695112,1755847845714,-2067.91,0.00025753,10]
[380695113,1755847845723,-480.0,0.00025753,10]
[380695114,1755847845732,-480.0,0.00025753,10]
[380695115,1755847845746,-480.0,0.00025753,10]
[380695116,1755847845756,-1501.81,0.00025753,10]
[380695117,1755847845766,-480.0,0.00025753,10]
[380695118,1755847845776,-480.0,0.00025753,10]
[380695119,1755847845786,-507.64443558,0.00025753,10]
[380695120,1755847845796,-480.0,0.00025753,10]
[380695121,1755847845805,-480.0,0.00025753,10]
[380695122,1755847845815,-480.0,0.00025753,10]
[380695123,1755847845825,-480.0,0.00025753,10]
[380695124,1755847845834,-801.51,0.00025753,10]
[380695125,1755847845843,-480.0,0.00025753,10]
[380695126,1755847845853,-885.27,0.00025753,10]
[380695127,1755847845864,-480.0,0.00025753,10]
[380695128,1755847845874,-1608.17,0.00025753,10]
[380695129,1755847845884,-480.0,0.00025753,10]
[380695130,1755847845894,-500.0,0.00025754,2]
[380695131,1755847845904,-250.44851005,0.00025768,2]
[380695132,1755847845914,-1500.0,0.00025768,2]
[380695133,1755847845924,-168.0,0.0002578,2]
[380695134,1755847845933,-252.0,0.00025782,2]
[380695135,1755847845946,-801.0,0.00025791,2]
[380695136,1755847845955,-156.0,0.00025836,7]
[380695137,1755847845964,-640.90008975,0.00025838,2]
[380695138,1755847845974,-2003.86240737,0.0002588,2]
[380695139,1755847845983,-151.0,0.000259,19]
[380695140,1755847845992,-1578.28209142,0.00025901,2]
[380695141,1755847846001,-7067.91842709,0.00025927,2]
[380695142,1755847846010,-600.0,0.00025934,2]
[380695143,1755847846019,-156.0,0.00025936,7]
[380695144,1755847846030,-700.0,0.00025958,2]
[380695145,1755847846039,-600.0,0.00025963,2]
[380695147,1755847846049,-318.4688872,0.0002599,2]
[380695148,1755847846059,-279.29476802,0.0002599,2]
[380695150,1755847846068,-700.0,0.00025993,2]
[380695152,1755847846078,-160.0,0.00025999,2]
[380695153,1755847846087,-435913.58613206,0.00026,14]
[380695154,1755847846157,-266.8,0.00026,14]
[380695155,1755847846169,-9301.23635488,0.00026,14]
[380695157,1755847846254,-359.99275684,0.00026,14]
[380695158,1755847846267,-76624.61422097,0.00026,14]
[380695159,1755847846276,-521.09193332,0.00026,2]
[380695160,1755847846286,-19900.0,0.00026,2]
[380695161,1755847846295,-600.0,0.00026007,2]
[380695162,1755847846305,-301.95400157,0.00026026,2]
[380695163,1755847846315,-480.0,0.00026027,10]
[380695164,1755847846324,-480.0,0.00026027,10]
[380695165,1755847846333,-480.0,0.00026027,10]
[380695166,1755847846342,-480.0,0.00026027,10]
[380695167,1755847846352,-480.0,0.00026027,10]
[380695168,1755847846363,-480.0,0.00026027,10]
[380695169,1755847846372,-480.0,0.00026027,10]
[380695170,1755847846382,-727.08,0.00026027,10]
[380695171,1755847846391,-480.0,0.00026027,10]
[380695172,1755847846400,-480.0,0.00026027,10]
[380695173,1755847846411,-480.0,0.00026027,10]
[380695174,1755847846421,-2164.51,0.00026027,10]
[380695175,1755847846431,-480.0,0.00026027,10]
[380695176,1755847846440,-890.84,0.00026027,10]
[380695177,1755847846450,-480.0,0.00026027,3]
[380695178,1755847846460,-480.0,0.00026027,10]
[380695179,1755847846469,-480.0,0.00026027,10]
[380695180,1755847846479,-480.0,0.00026027,10]
[380695181,1755847846488,-480.0,0.00026027,10]
[380695182,1755847846498,-480.0,0.00026027,10]
[380695183,1755847846507,-2067.91,0.00026027,10]
[380695184,1755847846517,-480.0,0.00026027,10]
[380695185,1755847846526,-530.62180261,0.00026027,10]
[380695186,1755847846536,-403.88685304,0.00026027,10]
[380695187,1755847846545,-1501.81,0.00026027,10]
[380695188,1755847846555,-480.0,0.00026027,10]
[380695189,1755847846564,-480.0,0.00026027,10]
[380695190,1755847846573,-480.0,0.00026027,10]
[380695191,1755847846583,-480.0,0.00026027,10]
[380695193,1755847846592,-480.0,0.00026027,10]
[380695194,1755847846602,-480.0,0.00026027,10]
[380695196,1755847846612,-801.51,0.00026027,10]
[380695198,1755847846622,-480.0,0.00026027,10]
[380695199,1755847846631,-885.27,0.00026027,10]
[380695201,1755847846641,-480.0,0.00026027,10]
[380695202,1755847846652,-1608.17,0.00026027,10]
[380695203,1755847846661,-480.0,0.00026027,10]
[380695204,1755847846671,-500.0,0.00026028,2]
[380695205,1755847846681,-156.0,0.00026036,7]
[380695206,1755847846691,-360.0,0.00026044,2]
[380695207,1755847846700,-600.0,0.00026056,2]
[380695208,1755847846709,-671.23820561,0.00026064,2]
[380695209,1755847846719,-801.0,0.00026065,2]
[380695210,1755847846730,-350.0,0.00026068,2]
[380695211,1755847846739,-2893.92,0.00026091,4]
[380695212,1755847846749,-5672.57,0.000261,7]
[380695213,1755847846758,-3210.97,0.000261,7]
[380695214,1755847846768,-600.0,0.00026107,2]
[380695215,1755847846778,-700.0,0.00026114,2]
[380695216,1755847846787,-156.0,0.00026136,7]
[380695217,1755847846797,-600.0,0.00026165,2]
[380695218,1755847846806,-168.0,0.00026167,7]
[380695219,1755847846815,-500.0,0.00026173,2]
[380695220,1755847846824,-600.0,0.00026183,2]
[380695221,1755847846834,-500.0,0.00026198,2]
[380695222,1755847846844,-700.0,0.00026235,2]
[380695223,1755847846853,-156.0,0.00026236,7]
[380695224,1755847846864,-500.0,0.00026237,2]
[380695225,1755847846875,-600.0,0.00026281,2]
[380695226,1755847846884,-480.0,0.00026301,10]
[380695227,1755847846894,-363.91907875,0.00026301,10]
[380695228,1755847846904,-480.0,0.00026301,10]
[380695229,1755847846914,-480.0,0.00026301,10]
[380695230,1755847846923,-480.0,0.00026301,10]
[380695231,1755847846933,-150.5675974,0.00026301,10]
[380695232,1755847846947,-480.0,0.00026301,10]
[380695233,1755847847041,-480.0,0.00026301,10]
[380695234,1755847847051,-727.08,0.00026301,10]
[380695235,1755847847060,-480.0,0.00026301,10]
[380695236,1755847847069,-480.0,0.00026301,10]
[380695237,1755847847079,-480.0,0.00026301,10]
[380695238,1755847847088,-2164.51,0.00026301,10]
[380695239,1755847847098,-480.0,0.00026301,10]
[380695240,1755847847108,-890.84,0.00026301,10]
[380695241,1755847847117,-480.0,0.00026301,3]
[380695242,1755847847127,-297.80488614,0.00026301,10]
[380695243,1755847847137,-480.0,0.00026301,10]
[380695244,1755847847147,-480.0,0.00026301,10]
[380695245,1755847847156,-480.0,0.00026301,10]
[380695246,1755847847165,-480.0,0.00026301,10]
[380695247,1755847847175,-2067.91,0.00026301,10]
[380695248,1755847847184,-480.0,0.00026301,10]
[380695249,1755847847195,-1501.81,0.00026301,10]
[380695250,1755847847204,-480.0,0.00026301,10]
[380695251,1755847847213,-480.0,0.00026301,10]
[380695252,1755847847223,-388.02883078,0.00026301,10]
[380695253,1755847847232,-224.5625176,0.00026301,10]
[380695254,1755847847241,-408.99511623,0.00026301,10]
[380695255,1755847847297,-294.0594923,0.000231,2]
[380695256,1755847847307,-160.0,0.00023813,2]
[380695257,1755847847316,-71.00488377,0.00026301,10]
[380695258,1755847847325,-480.0,0.00026301,10]
[380695259,1755847847335,-801.51,0.00026301,10]
[380695260,1755847847344,-480.0,0.00026301,10]
[380695261,1755847847353,-885.27,0.00026301,10]
[380695262,1755847847364,-433.0255211,0.00026301,10]
[380695263,1755847847374,-1608.17,0.00026301,10]
[380695264,1755847847384,-480.0,0.00026301,10]
[380695265,1755847847394,-500.0,0.00026302,2]
[380695266,1755847847403,-2000.0,0.00026316,2]
[380695267,1755847847412,-156.0,0.00026336,7]
[380695268,1755847847422,-801.0,0.00026339,2]
[380695269,1755847847432,-603.06511847,0.0002635,2]
[380695270,1755847847441,-640.90008975,0.00026354,2]
[380695271,1755847847450,-262.7,0.000264,7]
[380695272,1755847847459,-156.0,0.00026436,7]
[380695273,1755847847469,-2154.0,0.00026535,2]
[380695274,1755847847478,-637.0,0.00026535,2]
[380695275,1755847847487,-156.0,0.00026536,7]
[380695276,1755847847496,-600.0,0.00026553,2]
[380695277,1755847847506,-1921.04294712,0.00026559,5]
[380695278,1755847847515,-480.0,0.00026575,10]
[380695279,1755847847524,-480.0,0.00026575,10]
[380695280,1755847847534,-480.0,0.00026575,10]
[380695281,1755847847544,-480.0,0.00026575,10]
[380695282,1755847847553,-480.0,0.00026575,10]
[380695283,1755847847563,-480.0,0.00026575,10]
[380695284,1755847847572,-727.08,0.00026575,10]
[380695285,1755847847582,-480.0,0.00026575,10]
[380695286,1755847847591,-480.0,0.00026575,10]
[380695287,1755847847600,-480.0,0.00026575,10]
[380695288,1755847847609,-2164.51,0.00026575,10]
[380695289,1755847847619,-480.0,0.00026575,10]
[380695290,1755847847635,-890.84,0.00026575,10]
[380695291,1755847847647,-480.0,0.00026575,3]
[380695292,1755847847657,-480.0,0.00026575,10]
[380695293,1755847847668,-480.0,0.00026575,10]
[380695294,1755847847677,-480.0,0.00026575,10]
[380695295,1755847847686,-262.40551295,0.00026575,10]
[380695296,1755847847696,-2067.91,0.00026575,10]
[380695297,1755847847705,-480.0,0.00026575,10]
[380695298,1755847847715,-1501.81,0.00026575,10]
[380695299,1755847847724,-480.0,0.00026575,10]
[380695300,1755847847735,-480.0,0.00026575,10]
[380695301,1755847847744,-367.78413482,0.00026575,10]
[380695302,1755847847754,-480.0,0.00026575,10]
[380695303,1755847847763,-801.51,0.00026575,10]
[380695304,1755847847772,-480.0,0.00026575,10]
[380695305,1755847847782,-885.27,0.00026575,10]
[380695306,1755847847791,-1608.17,0.00026575,10]
[380695307,1755847847801,-227.1,0.00026575,10]
[380695308,1755847847810,-500.0,0.00026576,2]
[380695309,1755847847819,-700.0,0.00026592,2]
[380695310,1755847847828,-460.0,0.00026592,2]
[380695311,1755847847837,-801.0,0.00026613,2]
[380695312,1755847847845,-500.76361337,0.00026616,2]
[380695313,1755847847855,-1728.56485915,0.00026624,2]
[380695314,1755847847865,-156.0,0.00026636,7]
[380695315,1755847847874,-600.0,0.00026639,2]
[380695316,1755847847883,-700.0,0.00026646,2]
[380695317,1755847847892,-800.0,0.00026703,2]
[380695318,1755847847902,-828.40884469,0.00026718,2]
[380695319,1755847847911,-600.0,0.00026718,2]
[380695320,1755847847921,-156.0,0.00026736,7]
[380695321,1755847847930,-168.0,0.00026741,2]
[380695322,1755847847940,-800.0,0.0002675,2]
[380695323,1755847847950,-4179.0,0.00026763,7]
[380695324,1755847847960,-600.0,0.00026792,2]
[380695325,1755847847969,-151.0,0.00026833,2]
[380695326,1755847847979,-20321.20534452,0.00026833,2]
[380695327,1755847847989,-156.07727825,0.00026836,7]
[380695328,1755847848000,-480.0,0.00026849,10]
[380695329,1755847848014,-480.0,0.00026849,10]
[380695330,1755847848028,-329.84296842,0.00026849,10]
[380695331,1755847848041,-480.0,0.00026849,10]
[380695332,1755847848053,-430.36995085,0.00026849,10]
[380695333,1755847848064,-480.0,0.00026849,10]
[380695334,1755847848078,-727.08,0.00026849,10]
[380695335,1755847848090,-480.0,0.00026849,10]
[380695336,1755847848103,-480.0,0.00026849,10]
[380695337,1755847848117,-480.0,0.00026849,10]
[380695338,1755847848130,-2164.51,0.00026849,10]
[380695339,1755847848143,-480.0,0.00026849,10]
[380695340,1755847848157,-890.84,0.00026849,10]
[380695341,1755847848170,-480.0,0.00026849,3]
[380695342,1755847848183,-480.0,0.00026849,10]
[380695343,1755847848194,-480.0,0.00026849,10]
[380695344,1755847848207,-480.0,0.00026849,10]
[380695345,1755847848219,-2067.91,0.00026849,10]
[380695346,1755847848231,-480.0,0.00026849,10]
[380695347,1755847848243,-1501.81,0.00026849,10]
[380695348,1755847848256,-480.0,0.00026849,10]
[380695349,1755847848267,-465.65954076,0.00026849,10]
[380695350,1755847848279,-508.14746292,0.00026849,10]
[380695351,1755847848290,-801.51,0.00026849,10]
[380695352,1755847848300,-480.0,0.00026849,10]
[380695353,1755847848312,-885.27,0.00026849,10]
[380695354,1755847848324,-1608.17,0.00026849,10]
[380695355,1755847848337,-500.0,0.0002685,2]
[380695356,1755847848348,-2500.0,0.00026864,2]
[380695357,1755847848361,-640.90008975,0.00026871,2]
[380695358,1755847848372,-800.0,0.00026871,2]
[380695359,1755847848386,-801.0,0.00026887,2]
[380695360,1755847848399,-21923.76,0.000269,2]
[380695361,1755847848411,-800.0,0.00026916,2]
[380695362,1755847848424,-800.0,0.00026937,2]
[380695363,1755847848434,-700.0,0.00026938,2]
[380695364,1755847848444,-7295.36952858,0.00026943,2]
[380695365,1755847848455,-600.0,0.00026949,2]
[380695366,1755847848466,-800.0,0.0002697,2]
[380695367,1755847848478,-500.0,0.00026996,2]
[380695368,1755847848492,-700.0,0.00026998,2]
[380695369,1755847848505,-40066.97,0.00027,4]
[380695370,1755847848515,-100768.55,0.00027,4]
[380695371,1755847848526,-6259.46,0.00027,4]
[380695372,1755847848538,-646.0,0.00027,2]
[380695373,1755847848550,-232.32572668,0.00027,3]
[380695374,1755847848562,-160.0,0.00027,3]
[380695375,1755847848573,-281.0,0.00027009,2]
[380695376,1755847848583,-700.0,0.00027018,2]
[380695377,1755847848594,-600.0,0.00027026,2]
[380695378,1755847848605,-600.0,0.0002703,2]
[380695379,1755847848617,-391.97789172,0.00027043,2]
[380695380,1755847848628,-600.0,0.0002705,2]
[380695381,1755847848639,-4179.0,0.00027051,2]
[380695382,1755847848651,-700.0,0.00027089,2]
[380695383,1755847848663,-805.78870546,0.00027095,2]
[380695384,1755847848674,-439.71685026,0.00027123,10]
[380695385,1755847848685,-480.0,0.00027123,10]
[380695386,1755847848696,-480.0,0.00027123,10]
[380695387,1755847848707,-480.0,0.00027123,10]
[380695388,1755847848717,-727.08,0.00027123,10]
[380695389,1755847848729,-480.0,0.00027123,10]
[380695390,1755847848740,-480.0,0.00027123,10]
[380695391,1755847848751,-480.0,0.00027123,10]
[380695392,1755847848762,-2164.51,0.00027123,10]
[380695393,1755847848773,-480.0,0.00027123,10]
[380695394,1755847848784,-890.84,0.00027123,10]
[380695395,1755847848795,-480.0,0.00027123,3]
[380695396,1755847848806,-480.0,0.00027123,10]
[380695397,1755847848817,-480.0,0.00027123,10]
[380695398,1755847848829,-480.0,0.00027123,10]
[380695399,1755847848840,-2067.91,0.00027123,10]
[380695400,1755847848851,-480.0,0.00027123,10]
[380695401,1755847848863,-1501.81,0.00027123,10]
[380695402,1755847848875,-801.51,0.00027123,10]
[380695403,1755847848884,-480.0,0.00027123,10]
[380695404,1755847848894,-885.27,0.00027123,10]
[380695405,1755847848903,-1608.17,0.00027123,10]
[380695406,1755847848912,-500.0,0.00027124,2]
[380695407,1755847848922,-500.0,0.00027126,2]
[380695408,1755847848931,-700.0,0.00027138,2]
[380695409,1755847848944,-560.0,0.0002714,2]
[380695410,1755847848954,-191.65478537,0.00027158,2]
[380695411,1755847848963,-801.0,0.00027161,2]
[380695412,1755847848973,-600.0,0.00027185,2]
[380695413,1755847848983,-700.0,0.00027235,2]
[380695414,1755847848993,-600.0,0.00027242,2]
[380695415,1755847849002,-500.0,0.00027249,2]
[380695416,1755847849011,-800.0,0.0002725,2]
[380695417,1755847849022,-800.0,0.00027262,2]
[380695418,1755847849032,-700.0,0.00027262,2]
[380695419,1755847849041,-800.0,0.00027289,2]
[380695420,1755847849050,-168.0,0.0002729,2]
[380695421,1755847849060,-966.45,0.00027321,2]
[380695422,1755847849070,-500.0,0.0002733,2]
[380695423,1755847849080,-168.0,0.00027336,2]
[380695424,1755847849090,-700.0,0.00027349,2]
[380695425,1755847849099,-800.0,0.00027369,2]
[380695426,1755847849109,-640.90008975,0.00027387,2]
[380695427,1755847849118,-168.0,0.00027387,2]
[380695428,1755847849128,-700.0,0.00027389,2]
[380695429,1755847849137,-1236.35830699,0.00027389,2]
[380695430,1755847849295,-197.05202032,0.0002739,2]
[380695431,1755847849308,-480.0,0.00027397,10]
[380695432,1755847849318,-219.23462736,0.00027397,2]
[380695433,1755847849327,-480.0,0.00027397,10]
[380695434,1755847849336,-601.13995506,0.00027397,10]
[380695435,1755847849345,-727.08,0.00027397,10]
[380695436,1755847849354,-402.81449837,0.00027397,10]
[380695437,1755847849364,-480.0,0.00027397,10]
[380695438,1755847849373,-480.0,0.00027397,10]
[380695439,1755847849382,-1719.75509458,0.00027397,10]
[380695440,1755847849424,-444.75490542,0.00027397,10]
[380695441,1755847849434,-480.0,0.00027397,10]
[380695442,1755847849443,-890.84,0.00027397,10]
[380695443,1755847849453,-480.0,0.00027397,3]
[380695444,1755847849462,-480.0,0.00027397,10]
[380695445,1755847849471,-480.0,0.00027397,10]
[380695446,1755847849480,-480.0,0.00027397,10]
[380695447,1755847849489,-2067.91,0.00027397,10]
[380695448,1755847849497,-480.0,0.00027397,10]
[380695449,1755847849506,-1501.81,0.00027397,10]
[380695450,1755847849516,-801.51,0.00027397,10]
[380695451,1755847849527,-285.69,0.00027397,7]
[380695452,1755847849536,-480.0,0.00027397,10]
[380695453,1755847849545,-885.27,0.00027397,10]
[380695454,1755847849554,-1608.17,0.00027397,10]
[380695455,1755847849563,-500.0,0.00027397,5]
[380695456,1755847849572,-500.0,0.00027398,2]
[380695457,1755847849581,-700.0,0.00027398,2]
[380695458,1755847849590,-2000.0,0.000274,2]
[380695459,1755847849599,-600.0,0.00027401,2]
[380695460,1755847849609,-800.0,0.00027403,2]
[380695461,1755847849618,-3000.0,0.00027412,5]
[380695462,1755847849626,-168.0,0.00027417,2]
[380695463,1755847849636,-801.0,0.00027435,2]
[380695464,1755847849645,-500.0,0.00027437,2]
[380695465,1755847849654,-700.0,0.0002744,2]
[380695466,1755847849663,-800.0,0.00027441,2]
[380695467,1755847849672,-160.0,0.00027464,5]
[380695468,1755847849681,-700.0,0.00027481,2]
[380695469,1755847849692,-151.530056,0.00027487,7]
[380695470,1755847849701,-151.0,0.00027487,7]
[380695471,1755847849710,-151.0,0.00027487,7]
[380695472,1755847849719,-226.63381477,0.00027487,7]
[380695473,1755847849728,-151.0,0.00027487,7]
[380695474,1755847849737,-151.0,0.00027487,7]
[380695475,1755847849747,-449.748691,0.00027487,7]
[380695476,1755847849756,-449.748691,0.00027487,7]
[380695477,1755847849765,-449.748691,0.00027487,7]
[380695478,1755847849774,-446.24153,0.00027487,7]
[380695479,1755847849783,-449.748691,0.00027487,7]
[380695480,1755847849792,-446.24153,0.00027487,7]
[380695481,1755847849801,-449.748691,0.00027487,7]
[380695482,1755847849810,-446.24153,0.00027487,7]
[380695483,1755847849819,-449.748691,0.00027487,7]
[380695484,1755847849829,-446.24153,0.00027487,7]
[380695485,1755847849838,-446.24153,0.00027487,7]
[380695486,1755847849848,-446.24153,0.00027487,7]
[380695487,1755847849857,-449.748691,0.00027487,7]
[380695488,1755847849866,-449.748691,0.00027487,7]
[380695489,1755847849876,-446.24153,0.00027487,7]
[380695490,1755847849886,-446.24153,0.00027487,7]
[380695491,1755847849896,-151.0,0.00027487,7]
[380695492,1755847849905,-151.0,0.00027487,7]
[380695493,1755847849915,-151.0,0.00027487,7]
[380695494,1755847849924,-151.0,0.00027487,7]
[380695495,1755847849933,-151.0,0.00027487,7]
[380695496,1755847849944,-151.0,0.00027487,7]
[380695497,1755847849953,-153.419537,0.00027487,7]
[380695498,1755847849965,-151.0,0.00027487,7]
[380695499,1755847849974,-151.0,0.00027487,7]
[380695500,1755847849984,-151.0,0.00027487,7]
[380695501,1755847849995,-151.0,0.00027487,7]
[380695502,1755847850006,-151.0,0.00027487,7]
[380695503,1755847850015,-152.107217,0.00027487,7]
[380695504,1755847850024,-151.0,0.00027487,7]
[380695505,1755847850034,-151.0,0.00027487,7]
[380695506,1755847850044,-151.0,0.00027487,7]
[380695507,1755847850053,-151.0,0.00027487,7]
[380695508,1755847850062,-151.0,0.00027487,7]
[380695509,1755847850071,-151.0,0.00027487,7]
[380695510,1755847850081,-151.0,0.00027487,7]
[380695511,1755847850089,-151.0,0.00027487,7]
[380695512,1755847850098,-274.498042,0.00027487,7]
[380695513,1755847850107,-151.0,0.00027487,7]
[380695514,1755847850117,-151.0,0.00027487,7]
[380695515,1755847850126,-151.569489,0.00027487,7]
[380695516,1755847850135,-151.0,0.00027487,7]
[380695517,1755847850144,-151.0,0.00027487,7]
[380695518,1755847850153,-151.0,0.00027487,7]
[380695519,1755847850162,-151.0,0.00027487,7]
[380695520,1755847850171,-151.0,0.00027487,7]
[380695521,1755847850180,-151.0,0.00027487,7]
[380695522,1755847850190,-151.0,0.00027487,7]
[380695523,1755847850198,-151.0,0.00027487,7]
[380695524,1755847850208,-151.0,0.00027487,7]
[380695525,1755847850217,-151.0,0.00027487,7]
[380695526,1755847850226,-242.833482,0.00027487,7]
[380695527,1755847850235,-1557.2593844,0.00027487,2]
[380695528,1755847850244,-3795093.98871343,0.00027489,20]
[380695529,1755847850319,-166.53618269,0.00023972,2]
[380695530,1755847850328,-185.05476502,0.00023972,2]
[380695531,1755847850542,-129.45974919,0.00023972,2]
[380695532,1755847850551,-320.75605692,0.00023972,2]
[380695533,1755847850560,-199.0,0.00024557,10]
[380695534,1755847850569,-21681.42936639,0.00027489,20]
[380695535,1755847850578,-241829.09758884,0.00027489,20]
[380695536,1755847850587,-363.88,0.00027489,2]
[380695537,1755847850596,-363.88,0.00027489,2]
[380695538,1755847850605,-783.58202099,0.00027489,30]
[380695539,1755847850614,-174826.43499667,0.00027489,20]
[380695540,1755847850625,-1860.22702533,0.00027489,20]
[380695541,1755847850636,-5750.0,0.00027489,20]
[380695542,1755847959346,1781.2022062,0.000199,2]
[380695556,1755848123929,1721.82879952,0.000199,2]
[380695574,1755848289554,1736.91581571,0.000199,2]
[380695592,1755848454073,1679.01862194,0.000199,2]
[380695593,1755848493060,5000.0,0.0002,2]
[380695599,1755848628264,1623.0513346,0.000199,2]
[380695601,1755848793207,1568.94962335,0.000199,2]
[380695602,1755848818337,1595.68,0.00027473,60]
[380695605,1755848958302,1516.65130262,0.000199,2]
[380695619,1755849031890,-472.84955145,0.000202,2]
[380695621,1755849031971,-230.23388894,0.000202,2]
[380695622,1755849031981,-707.85611106,0.0002101,2]
[380695623,1755849031993,-808.79519145,0.0002101,2]
[380695624,1755849032002,-776.65656746,0.0002212,2]
[380695625,1755849032013,-739.99473505,0.0002212,2]
[380695626,1755849032023,-209.74588108,0.00024231,2]
[380695627,1755849032032,-199.0,0.00024257,10]
[380695628,1755849032041,-1516.65130251,0.00024339,2]
[380695630,1755849032051,-199.0,0.00024357,10]
[380695631,1755849032060,-199.0,0.00024457,10]
[380695632,1755849032069,-156.365,0.00024656,7]
[380695633,1755849032078,-300.0,0.00024656,2]
[380695634,1755849032087,-1200.0,0.00024656,2]
[380695635,1755849032097,-480.0,0.00024657,10]
[380695636,1755849032106,-480.0,0.00024657,10]
[380695637,1755849032115,-481.86963607,0.00024657,10]
[380695638,1755849032124,-480.0,0.00024657,10]
[380695639,1755849032133,-480.0,0.00024657,10]
[380695640,1755849032144,-480.0,0.00024657,10]
[380695641,1755849032154,-480.0,0.00024657,10]
[380695642,1755849032163,-480.0,0.00024657,10]
[380695643,1755849032172,-291.66570759,0.00024657,10]
[380695660,1755849037882,-199.0,0.00024557,10]
[380695662,1755849037892,-205.39176818,0.00024657,10]
[380695665,1755849037904,-31.90051233,0.00024657,10]
[380695667,1755849037913,-480.0,0.00024657,10]
[380695669,1755849037924,-483.06076536,0.00024657,10]
[380695671,1755849037933,-480.0,0.00024657,10]
[380695673,1755849037942,-216.99125601,0.00024657,10]
[380695674,1755849037951,-480.0,0.00024657,10]
[380695677,1755849037960,-480.0,0.00024657,10]
[380695679,1755849037971,-480.0,0.00024657,10]
[380695681,1755849037981,-480.0,0.00024657,10]
[380695683,1755849037990,-480.0,0.00024657,10]
[380695685,1755849038000,-480.0,0.00024657,10]
[380695686,1755849038009,-480.0,0.00024657,10]
[380695689,1755849038019,-871.1,0.00024657,10]
[380695690,1755849038028,-1172.44,0.00024657,10]